Workbook

Sheet Assumptions
A1: Initial Operation Year: | B1: 2014 | G1: Type of Business/Marketing: | H1: Saasware/Email
A3: Unit Assumptions | D3: Financial Assumptions | G3: Market Assumptions
A5: Initial Scale (Year 1) | D5: Taxes | G5: Marketing Ratios | J5: Saasware/Email | K5: Mfg./Wholesale | L5: Product/Direct
A6: Sale Price: | B6: 100 | D6: Income Tax Rate: | E6: 0.4 | G6: Reception/Open Rate: | H6: =IF($H$1=$J$5,J6,IF($H$1=$K$5,K6,IF($H$1=$L$5,L6,0))) -> 0.04 | J6: 0.04 | K6: =0.5 -> 0.5 | L6: 0.95
A7: Transaction Cost: | B7: 10 | G7: Action/Click Rate: | H7: =IF($H$1=$J$5,J7,IF($H$1=$K$5,K7,IF($H$1=$L$5,L7,0))) -> 0.25 | J7: 0.25 | K7: 1 | L7: 0.8
A8: Logistics Cost: | B8: 0 | D8: Overhead | G8: Conversion Rate: | H8: =IF($H$1=$J$5,J8,IF($H$1=$K$5,K8,IF($H$1=$L$5,L8,0))) -> 0.1 | J8: 0.1 | K8: 0.05 | L8: 0.1
A9: Component 1: | B9: 0 | D9: SG&A Rate: | E9: 0.2
A10: Component 2: | B10: 0 | G10: Marketing Costs
A11: Component 3: | B11: 0 | G11: Cost per contact lead: | H11: =IF($H$1=$J$5,J11,IF($H$1=$K$5,K11,IF($H$1=$L$5,L11,0))) -> 0.04 | J11: 0.04 | K11: 22 | L11: 0.8
A12: Other components: | B12: 0 | G12: Cost per contact made: | H12: 0.0015 | J12: 0.0015 | K12: 35 | L12: 0
A13: Manufacturing: | B13: 0 | G13: Cost per action required: | H13: 0.02 | J13: 0.02 | K13: 300 | L13: 0
A14: Processing: | B14: 0 | G14: Cost per sale/conversion: | H14: 0.27 | J14: 0.27 | K14: 1200 | L14: 2.25
A17: Gross Margin: | B17: =B6-SUM(B7:B16) -> 90 | G17: Awareness Factors
G18: Referral coefficient (K): | H18: 0.2 | J18: 0.2 | K18: 0.05 | L18: 0.35
G19: Contact overlap: | H19: =IF($H$1=$J$5,J19,IF($H$1=$K$5,K19,IF($H$1=$L$5,L19,0))) -> 0.25 | J19: 0.25 | K19: 0.05 | L19: 0.3
A20: Expansion Scale (Year 3) | G20: Contact decay: | H20: 0.05 | J20: 0.05 | K20: 0.01 | L20: 0.02
A21: Sale Price: | B21: =B6 -> 100 | G21: Recurring coefficient: | H21: 0.55 | J21: 0.55 | K21: 0.8 | L21: 0.6
A22: Transaction Cost: | B22: =B7 -> 10
A23: Logistics Cost: | B23: 0 | G23: Marketing Efforts
A24: Component 1: | B24: 0 | G24: Contacts Made Year 1: | H24: 1000000
A25: Component 2: | B25: 0 | G25: Contacts Made Year 2: | H25: 2000000
A26: Component 3: | B26: 0 | G26: Contacts Made Year 3: | H26: 4000000
A27: Other components: | B27: 0 | G27: Contacts Made Year 4: | H27: 5000000
A28: Manufacturing: | B28: 0 | G28: Contacts Made Year 5: | H28: 6000000
A29: Processing: | B29: 0
A32: Gross Margin: | B32: =B21-SUM(B22:B31) -> 90
A35: Full Scale (Year 5)
A36: Sale Price: | B36: =B21 -> 100
A37: Transaction Cost: | B37: =B22 -> 10
A38: Logistics Cost: | B38: 0
A39: Component 1: | B39: 0
A40: Component 2: | B40: 0
A41: Component 3: | B41: 0
A42: Other components: | B42: 0
A43: Manufacturing: | B43: 0
A44: Processing: | B44: 0
A47: Gross Margin: | B47: =B36-SUM(B37:B46) -> 90

Sheet Income Statement
A1: Total Products Sold: | B1: =Contacts1*OpenRate*ClickRate*ConversionRate -> 1000 | C1: =(Contacts2*OpenRate*ClickRate*ConversionRate*(1-ContactDecay)*(1-Overlap)*(1+K))+(Recurring*B1) -> 2260 | D1: =(Contacts3*OpenRate*ClickRate*ConversionRate*(1-ContactDecay)*(1-Overlap)*(1+K))+(Recurring*C1) -> 4663 | E1: =(Contacts4*OpenRate*ClickRate*ConversionRate*(1-ContactDecay)*(1-Overlap)*(1+K))+(Recurring*D1) -> 6839.65 | F1: =(Contacts5*OpenRate*ClickRate*ConversionRate*(1-ContactDecay)*(1-Overlap)*(1+K))+(Recurring*E1) -> 8891.8075
B3: =Assumptions!B1 -> 2014 | C3: =B3+1 -> 2015 | D3: =C3+1 -> 2016 | E3: 2017 | F3: 2018
A4: Revenues:
A5: sales | B5: =Assumptions!$B$6*B1 -> 100000 | C5: =Assumptions!$B$6*C1 -> 226000 | D5: =Assumptions!$B$21*D1 -> 466300 | E5: =Assumptions!$B$21*E1 -> 683965 | F5: =Assumptions!$B$36*F1 -> 889180.75
A6: other revenue
A10: Total Revenue: | B10: =SUM(B5:B9) -> 100000 | C10: =SUM(C5:C9) -> 226000 | D10: 466300 | E10: 683965 | F10: 889180.75
A12: Expenses:
A13: COGS | B13: =SUM(Assumptions!$B$7:$B$14)*B1 -> 10000 | C13: =SUM(Assumptions!$B$7:$B$14)*C1 -> 22600 | D13: =SUM(Assumptions!$B$22:$B$29)*D1 -> 46630 | E13: =SUM(Assumptions!$B$22:$B$29)*E1 -> 68396.5 | F13: =SUM(Assumptions!$B$37:$B$44)*F1 -> 88918.075
A14: General R&D
A15: Marketing | B15: =(Contacts1*LeadCost)+(Contacts1*ContactCost)+(Contacts1*OpenRate*ClickRate*ActionCost)+(Contacts1*OpenRate*ClickRate*ConversionRate*ConversionCost) -> 41970 | C15: =(Contacts2*LeadCost)+(Contacts2*ContactCost)+(Contacts2*OpenRate*ClickRate*ActionCost)+(Contacts2*OpenRate*ClickRate*ConversionRate*ConversionCost) -> 83940 | D15: =(Contacts3*LeadCost)+(Contacts3*ContactCost)+(Contacts3*OpenRate*ClickRate*ActionCost)+(Contacts3*OpenRate*ClickRate*ConversionRate*ConversionCost) -> 167880 | E15: =(Contacts4*LeadCost)+(Contacts4*ContactCost)+(Contacts4*OpenRate*ClickRate*ActionCost)+(Contacts4*OpenRate*ClickRate*ConversionRate*ConversionCost) -> 209850 | F15: =(Contacts5*LeadCost)+(Contacts5*ContactCost)+(Contacts5*OpenRate*ClickRate*ActionCost)+(Contacts5*OpenRate*ClickRate*ConversionRate*ConversionCost) -> 251820
A16: Salary 1
A17: Salary 2
A18: Salary 3
A19: Salary 4
A20: Other SG&A | B20: =Assumptions!$E$9*B5 -> 20000 | C20: =Assumptions!$E$9*C5 -> 45200 | D20: =Assumptions!$E$9*D5 -> 93260 | E20: =Assumptions!$E$9*E5 -> 136793 | F20: =Assumptions!$E$9*F5 -> 177836.15
A21: Principal payments
A24: Total operating expenses | B24: =SUM(B13:B23) -> 71970 | C24: =SUM(C13:C23) -> 151740 | D24: 307770 | E24: 415039.5 | F24: 518574.225
A25: EBITDA | B25: =B10-B24 -> 28030 | C25: =C10-C24 -> 74260 | D25: 158530 | E25: 268925.5 | F25: 370606.525
A26: Interest expense
A27: Depreciation
A29: Taxable income | B29: =B25-SUM(B26:B28) -> 28030 | C29: =C25-SUM(C26:C28) -> 74260 | D29: 158530 | E29: 268925.5 | F29: 370606.525
A30: income tax expense | B30: =IF(B29>0,B29*Assumptions!$E$6,0) -> 11212 | C30: =IF(C29>0,C29*Assumptions!$E$6,0) -> 29704 | D30: =IF(D29>0,D29*Assumptions!$E$6,0) -> 63412 | E30: =IF(E29>0,E29*Assumptions!$E$6,0) -> 107570.2 | F30: =IF(F29>0,F29*Assumptions!$E$6,0) -> 148242.61
A33: Total Expenses: | B33: =B24+SUM(B26:B28)+SUM(B30:B32) -> 83182 | C33: =C24+SUM(C26:C28)+SUM(C30:C32) -> 181444 | D33: 371182 | E33: 522609.7 | F33: 666816.835
A34: Net income (loss): | B34: =B10-B33 -> 16818 | C34: =C10-C33 -> 44556 | D34: 95118 | E34: 161355.3 | F34: 222363.915

Sheet Cashflow Statement
B2: =Assumptions!B1 -> 2014 | C2: =B2+1 -> 2015 | D2: =C2+1 -> 2016 | E2: 2017 | F2: 2018
A3: Operations Cash Flow:
A4: Sales | B4: ='Income Statement'!B5 -> 100000 | C4: ='Income Statement'!C5 -> 226000 | D4: ='Income Statement'!D5 -> 466300 | E4: ='Income Statement'!E5 -> 683965 | F4: ='Income Statement'!F5 -> 889180.75
A5: Other | B5: ='Income Statement'!B6 -> 0 | C5: ='Income Statement'!C6 -> 0 | D5: ='Income Statement'!D6 -> 0 | E5: ='Income Statement'!E6 -> 0 | F5: ='Income Statement'!F6 -> 0
A7: Costs you have to cover during regular business operation are called Operating Expense (or Opex)
A8: Cash paid for:
A9: inventory purchases | B9: =-'Income Statement'!B13 -> -10000 | C9: =-'Income Statement'!C13 -> -22600 | D9: =-'Income Statement'!D13 -> -46630 | E9: =-'Income Statement'!E13 -> -68396.5 | F9: =-'Income Statement'!F13 -> -88918.075
A10: General R&D | B10: =-'Income Statement'!B14 -> 0 | C10: =-'Income Statement'!C14 -> 0 | D10: =-'Income Statement'!D14 -> 0 | E10: =-'Income Statement'!E14 -> 0 | F10: =-'Income Statement'!F14 -> 0
A11: Marketing | B11: =-'Income Statement'!B15 -> -41970 | C11: =-'Income Statement'!C15 -> -83940 | D11: =-'Income Statement'!D15 -> -167880 | E11: =-'Income Statement'!E15 -> -209850 | F11: =-'Income Statement'!F15 -> -251820
A12: Salary 1 | B12: =-'Income Statement'!B16 -> 0 | C12: =-'Income Statement'!C16 -> 0 | D12: =-'Income Statement'!D16 -> 0 | E12: =-'Income Statement'!E16 -> 0 | F12: =-'Income Statement'!F16 -> 0
A13: Salary 2 | B13: =-'Income Statement'!B17 -> 0 | C13: =-'Income Statement'!C17 -> 0 | D13: =-'Income Statement'!D17 -> 0 | E13: =-'Income Statement'!E17 -> 0 | F13: =-'Income Statement'!F17 -> 0
A14: Salary 3 | B14: =-'Income Statement'!B18 -> 0 | C14: =-'Income Statement'!C18 -> 0 | D14: =-'Income Statement'!D18 -> 0 | E14: =-'Income Statement'!E18 -> 0 | F14: =-'Income Statement'!F18 -> 0
A15: Salary 4 | B15: =-'Income Statement'!B19 -> 0 | C15: =-'Income Statement'!C19 -> 0 | D15: =-'Income Statement'!D19 -> 0 | E15: =-'Income Statement'!E19 -> 0 | F15: =-'Income Statement'!F19 -> 0
A16: Other SG&A | B16: =-'Income Statement'!B20 -> -20000 | C16: =-'Income Statement'!C20 -> -45200 | D16: =-'Income Statement'!D20 -> -93260 | E16: =-'Income Statement'!E20 -> -136793 | F16: =-'Income Statement'!F20 -> -177836.15
A17: Interest expense | B17: =-'Income Statement'!B26 -> 0 | C17: =-'Income Statement'!C26 -> 0 | D17: =-'Income Statement'!D26 -> 0 | E17: =-'Income Statement'!E26 -> 0 | F17: =-'Income Statement'!F26 -> 0
A18: Principal payments | B18: =-'Income Statement'!B21 -> 0 | C18: =-'Income Statement'!C21 -> 0 | D18: =-'Income Statement'!D21 -> 0 | E18: =-'Income Statement'!E21 -> 0 | F18: =-'Income Statement'!F21 -> 0
A20: income taxes paid for last year | B20: 0 | C20: =-'Income Statement'!B30 -> -11212 | D20: =-'Income Statement'!C30 -> -29704 | E20: =-'Income Statement'!D30 -> -63412 | F20: =-'Income Statement'!E30 -> -107570.2
A22: Net cash flow from operations: | B22: =SUM(B4:B21) -> 28030 | C22: =SUM(C4:C21) -> 63048 | D22: 128826 | E22: 205513.5 | F22: 263036.325
A24: Investing Cash Flow - this is cash for equipment (or Capital Expense, also known as Capex)
A25: cash (paid) for property additions
A26: cash proceeds from property sales
A27: other
A29: Net cash flow for investing: | B29: =SUM(B25:B28) -> 0 | C29: =SUM(C25:C28) -> 0 | D29: =SUM(D25:D28) -> 0 | E29: =SUM(E25:E28) -> 0 | F29: =SUM(F25:F28) -> 0
A31: Financing Cash Flow - this is what investors give you or what you borrow to run your company
A32: cash from investors | B32: 1000000
A33: additions to short-term borrowing
A34: payments on short-term borrowing
A35: additions to long-term borrowing
A36: payments on long-term borrowing
A37: treasury stock purchase
A38: net warrant and option proceeds
A39: other
A41: Net cash flow for financing: | B41: =SUM(B32:B40) -> 1000000 | C41: =SUM(C32:C40) -> 0 | D41: =SUM(D32:D40) -> 0 | E41: =SUM(E32:E40) -> 0 | F41: =SUM(F32:F40) -> 0
A42: Increase in cash and equivalents: | B42: =B41+B29+B22 -> 1028030 | C42: =C41+C29+C22 -> 63048 | D42: =D41+D29+D22 -> 128826 | E42: =E41+E29+E22 -> 205513.5 | F42: =F41+F29+F22 -> 263036.325
A44: Cash and Cash Equivalents:
A45: beginning of year | B45: 0 | C45: =B46 -> 1028030 | D45: =C46 -> 1091078 | E45: 1219904 | F45: 1425417.5
A46: end of year | B46: =B45+B42 -> 1028030 | C46: =C45+C42 -> 1091078 | D46: 1219904 | E46: 1425417.5 | F46: 1688453.825

Sheet Balance Sheet
B2: =Assumptions!B1 -> 2014 | C2: =B2+1 -> 2015 | D2: =C2+1 -> 2016 | E2: 2017 | F2: 2018
A3: Assets:
A4: Current Assets:
A5: cash | B5: ='Cashflow Statement'!B46 -> 1028030 | C5: ='Cashflow Statement'!C46 -> 1091078 | D5: ='Cashflow Statement'!D46 -> 1219904 | E5: ='Cashflow Statement'!E46 -> 1425417.5 | F5: ='Cashflow Statement'!F46 -> 1688453.825
A6: accounts receivable
A7: inventory
A8: prepaid expenses
A12: Total Current Assets: | B12: =SUM(B5:B11) -> 1028030 | C12: =SUM(C5:C11) -> 1091078 | D12: 1219904 | E12: 1425417.5 | F12: 1688453.825
A14: Property:
A15: land
A16: buildings
A17: leasehold improvements
A18: fixtures and equipment
A19: property under capital lease
A23: Total Property | B23: =SUM(B15:B22) -> 0 | C23: =SUM(C15:C22) -> 0 | D23: 0 | E23: 0 | F23: 0
A24: less accumulated depreciation
A25: Total Property Net: | B25: =SUM(B23:B24) -> 0 | C25: =SUM(C23:C24) -> 0 | D25: 0 | E25: 0 | F25: 0
A26: Goodwill:
A27: Other Assets (see Notes):
A28: Total Assets: | B28: =B12+SUM(B25:B27) -> 1028030 | C28: =C12+SUM(C25:C27) -> 1091078 | D28: 1219904 | E28: 1425417.5 | F28: 1688453.825
A30: Liabilities:
A31: Current Liabilities:
A32: short-term loans payable
A33: accounts payable
A34: accrued salaries and wages
A38: Total Current Liabilities: | B38: =SUM(B32:B37) -> 0 | C38: =SUM(C32:C37) -> 0 | D38: =SUM(D32:D37) -> 0 | E38: =SUM(E32:E37) -> 0 | F38: =SUM(F32:F37) -> 0
A40: Long-term liabilities:
A41: long-term notes and debentures
A42: obligations under capital leases | G42: Price: | H42: =B2 -> 2014 | I42: =C2 -> 2015 | J42: =D2 -> 2016 | K42: =E2 -> 2017 | L42: =F2 -> 2018
A43: other liabilities | H43: 1.145531765 | I43: 1.427332853 | J43: 1.99827757 | K43: 2.789507666 | L43: 3.777535499
G45: Shares: | H45: 1000000 | I45: 1000000 | J45: 1000000 | K45: 1000000 | L45: 1000000
A46: Total long-term liabilities: | B46: =SUM(B41:B45) -> 0 | C46: =SUM(C41:C45) -> 0 | D46: 0 | E46: 0 | F46: 0
G47: Percentages (basic cap table):
A48: Stockholders' equity: | H48: =B2 -> 2014 | I48: =C2 -> 2015 | J48: 2016 | K48: 2017 | L48: 2018
A49: paid-in capital and investor shares | B49: =H49*H$45*H$43 -> 400936.1177 | C49: =I49*I$45*I$43 -> 499566.4987 | D49: 699397.1496 | E49: 976327.6829 | F49: 1322137.425 | H49: 0.35 | I49: 0.35 | J49: 0.35 | K49: 0.35 | L49: 0.35
A50: founder and employee shares | B50: =H50*H$45*H$43 -> 458212.7059 | C50: 570933.1413 | D50: 799311.0281 | E50: 1115803.066 | F50: 1511014.2 | H50: 0.4 | I50: 0.4 | J50: 0.4 | K50: 0.4 | L50: 0.4
A51: outstanding unexercised option shares | B51: 286382.9412 | C51: 356833.2133 | D51: 499569.3926 | E51: 697376.9164 | F51: 944383.8748 | H51: 0.25 | I51: 0.25 | J51: 0.25 | K51: 0.25 | L51: 0.25
A52: other equity holder… | B52: 0 | C52: 0 | D52: 0 | E52: 0 | F52: 0 | H52: 0 | I52: 0 | J52: 0 | K52: 0 | L52: 0
A53: other equity holder… | B53: 0 | C53: 0 | D53: 0 | E53: 0 | F53: 0 | H53: 0 | I53: 0 | J53: 0 | K53: 0 | L53: 0
A55: acc. other comprehensive income (loss)
A58: Total equity incl. retained earnings: | B58: =SUM(B48:B57) -> 1145531.765 | C58: =C38+SUM(C48:C57) -> 1427332.853 | D58: =D38+SUM(D48:D57) -> 1998277.57 | E58: =E38+SUM(E48:E57) -> 2789507.666 | F58: =F38+SUM(F48:F57) -> 3777535.499 | H58: =SUM(H49:H53) -> 1 | I58: =SUM(I49:I53) -> 1 | J58: 1 | K58: 1 | L58: 1
A59: Total liabilities and stockholders' equity: | B59: =B58+B46 -> 1145531.765 | C59: =C58+C46 -> 1427332.853 | D59: =D58+D46 -> 1998277.57 | E59: =E58+E46 -> 2789507.666 | F59: =F58+F46 -> 3777535.499
G63: Check: | H63: =B28-B59 -> -117501.7647 | I63: =C28-C59 -> -336254.8533 | J63: =D28-D59 -> -778373.5703 | K63: =E28-E59 -> -1364090.166 | L63: =F28-F59 -> -2089081.674

Sheet Graphs
A1: Table for Written Plan:
C3: 2012 | D3: 2013 | E3: 2014 | F3: 2015 | G3: 2016
B4: Sales | C4: ='Income Statement'!B10 -> 100000 | D4: ='Income Statement'!C10 -> 226000 | E4: ='Income Statement'!D10 -> 466300 | F4: ='Income Statement'!E10 -> 683965 | G4: ='Income Statement'!F10 -> 889180.75
B5: COGS | C5: ='Income Statement'!B13 -> 10000 | D5: ='Income Statement'!C13 -> 22600 | E5: ='Income Statement'!D13 -> 46630 | F5: ='Income Statement'!E13 -> 68396.5 | G5: ='Income Statement'!F13 -> 88918.075
B6: R&D | C6: ='Income Statement'!B14 -> 0 | D6: ='Income Statement'!C14 -> 0 | E6: ='Income Statement'!D14 -> 0 | F6: ='Income Statement'!E14 -> 0 | G6: ='Income Statement'!F14 -> 0
B7: Marketing | C7: ='Income Statement'!B15 -> 41970 | D7: ='Income Statement'!C15 -> 83940 | E7: ='Income Statement'!D15 -> 167880 | F7: ='Income Statement'!E15 -> 209850 | G7: ='Income Statement'!F15 -> 251820
B8: SG&A | C8: =SUM('Income Statement'!B16:B20) -> 20000 | D8: =SUM('Income Statement'!C16:C20) -> 45200 | E8: =SUM('Income Statement'!D16:D20) -> 93260 | F8: =SUM('Income Statement'!E16:E20) -> 136793 | G8: =SUM('Income Statement'!F16:F20) -> 177836.15
B9: Other | C9: ='Income Statement'!B33-SUM(C5:C8)-C10 -> 0 | D9: ='Income Statement'!C33-SUM(D5:D8)-D10 -> 0 | E9: ='Income Statement'!D33-SUM(E5:E8)-E10 -> 0 | F9: ='Income Statement'!E33-SUM(F5:F8)-F10 -> 0 | G9: ='Income Statement'!F33-SUM(G5:G8)-G10 -> 0
B10: Taxes | C10: ='Income Statement'!B30 -> 11212 | D10: ='Income Statement'!C30 -> 29704 | E10: ='Income Statement'!D30 -> 63412 | F10: ='Income Statement'!E30 -> 107570.2 | G10: ='Income Statement'!F30 -> 148242.61
B11: Total: | C11: =C4-SUM(C5:C10) -> 16818 | D11: =D4-SUM(D5:D10) -> 44556 | E11: 95118 | F11: 161355.3 | G11: 222363.915
G15: Revenue Breakdown:
G34: Growth Curve:

Sheet Data (hidden)
A1: Year 1 Share Price | B1: Year 2 Share Price | C1: Year 3 Share Price | D1: Year 4 Share Price | E1: Year 5 Share Price | F1: Open Rate | G1: Click Rate | H1: Conversion Rate | I1: 5-year Simple Growth | J1: Bin Range | K1: Bins | L1: Bin Labels | M1: Frequency
A2: 1.145173662 | B2: 1.4262975 | C2: 1.995872073 | D2: 2.785253106 | E2: 3.770983778 | F2: 0.073 | G2: 0.3225 | H2: 0.114 | I2: 2.292936175 | J2: =MIN(I:I) -> 0.6251211336 | K2: =((($J$3-$J$2)/15)*1)+$J$2 -> 0.8679307303 | L2: =ROUND(J2,2)*100&" - "&ROUND(K2,2)*100&"%" -> 63 - 87% | M2: =COUNTIF(I:I,"<="&K2) -> 18
A3: 1.117504294 | B3: 1.347176061 | C3: 1.81276933 | D3: 2.464588914 | E3: 3.280095816 | F3: 0.098 | G3: 0.32 | H3: 0.073 | I3: 1.935197504 | J3: =MAX(I:I) -> 4.267265083 | K3: =((($J$3-$J$2)/15)*2)+$J$2 -> 1.110740327 | L3: =ROUND(K2,2)*100&" - "&ROUND(K3,2)*100&"%" -> 87 - 111% | M3: =COUNTIF(I:I,"<="&K3)-COUNTIF(I:I,"<="&K2) -> 50
A4: 1.161878866 | B4: 1.474098757 | C4: 2.106520596 | D4: 2.97914843 | E4: 4.067917572 | F4: 0.084 | G4: 0.2975 | H4: 0.117 | I4: 2.501154631 | K4: =((($J$3-$J$2)/15)*3)+$J$2 -> 1.353549924 | L4: =ROUND(K3,2)*100&" - "&ROUND(K4,2)*100&"%" -> 111 - 135% | M4: =COUNTIF(I:I,"<="&K4)-COUNTIF(I:I,"<="&K3) -> 80
A5: 1.098802287 | B5: 1.293593526 | C5: 1.688682142 | D5: 2.246895492 | E5: 2.946487776 | F5: 0.081 | G5: 0.2075 | H5: 0.12 | I5: 1.681544997 | K5: =((($J$3-$J$2)/15)*4)+$J$2 -> 1.59635952 | L5: 135 - 160% | M5: 120
A6: 1.16716506 | B6: 1.48927229 | C6: 2.141683221 | D6: 3.040940126 | E6: 4.162707013 | F6: 0.116 | G6: 0.2975 | H6: 0.087 | I6: 2.566510989 | K6: =((($J$3-$J$2)/15)*5)+$J$2 -> 1.839169117 | L6: 160 - 184% | M6: 136
A7: 1.080944511 | B7: 1.242515621 | C7: 1.570466823 | D7: 2.039819301 | E7: 2.629441357 | F7: 0.087 | G7: 0.2225 | H7: 0.091 | I7: 1.432540551 | K7: =((($J$3-$J$2)/15)*6)+$J$2 -> 2.081978714 | L7: 184 - 208% | M7: 133
A8: 1.201405674 | B8: 1.587231811 | C8: 2.368420644 | D8: 3.438195707 | E8: 4.7710061 | F8: 0.114 | G8: 0.2975 | H8: 0.103 | I8: 2.971186589 | K8: =((($J$3-$J$2)/15)*7)+$J$2 -> 2.32478831 | L8: 208 - 232% | M8: 121
A9: 1.248351072 | B9: 1.721541267 | C9: 2.67929593 | D9: 3.982874768 | E9: 5.605056832 | F9: 0.128 | G9: 0.2625 | H9: 0.124 | I9: 3.489968374 | K9: =((($J$3-$J$2)/15)*8)+$J$2 -> 2.567597907 | L9: 232 - 257% | M9: 94
A10: 1.082986976 | B10: 1.248382813 | C10: 1.584066989 | D10: 2.063735492 | E10: 2.666144316 | F10: 0.118 | G10: 0.2025 | H10: 0.075 | I10: 1.461843378 | K10: =((($J$3-$J$2)/15)*9)+$J$2 -> 2.810407504 | L10: 257 - 281% | M10: 88
A11: 1.080830405 | B11: 1.242160386 | C11: 1.569620548 | D11: 2.038230458 | E11: 2.626910516 | F11: 0.071 | G11: 0.195 | H11: 0.127 | I11: 1.43045579 | K11: =((($J$3-$J$2)/15)*10)+$J$2 -> 3.0532171 | L11: 281 - 305% | M11: 59
A12: 1.239681419 | B12: 1.696732086 | C12: 2.62186748 | D12: 3.882234942 | E12: 5.450931204 | F12: 0.123 | G12: 0.265 | H12: 0.124 | I12: 3.397041949 | K12: =((($J$3-$J$2)/15)*11)+$J$2 -> 3.296026697 | L12: 305 - 330% | M12: 41
A13: 1.125037555 | B13: 1.368672812 | C13: 1.862479599 | D13: 2.551480069 | E13: 3.412960192 | F13: 0.096 | G13: 0.215 | H13: 0.116 | I13: 2.033641122 | K13: =((($J$3-$J$2)/15)*12)+$J$2 -> 3.538836294 | L13: 330 - 354% | M13: 35
A14: 1.121847111 | B14: 1.359598697 | C14: 1.8415213 | D14: 2.514957208 | E14: 3.357216336 | F14: 0.119 | G14: 0.26 | H14: 0.076 | I14: 1.992579205 | K14: =((($J$3-$J$2)/15)*13)+$J$2 -> 3.78164589 | L14: 354 - 378% | M14: 16
A15: 1.129893423 | B15: 1.38258772 | C15: 1.894706036 | D15: 2.608026043 | E15: 3.499623568 | F15: 0.083 | G15: 0.3 | H15: 0.099 | I15: 2.097304132 | K15: =((($J$3-$J$2)/15)*14)+$J$2 -> 4.024455487 | L15: 378 - 402% | M15: 6
A16: 1.146796759 | B16: 1.430949165 | C16: 2.006645616 | D16: 2.804158845 | E16: 3.799960885 | F16: 0.109 | G16: 0.23 | H16: 0.108 | I16: 2.313543447 | K16: =((($J$3-$J$2)/15)*15)+$J$2 -> 4.267265083 | L16: 402 - 427% | M16: 3
A17: 1.115951669 | B17: 1.342696065 | C17: 1.802368117 | D17: 2.446225123 | E17: 3.251846711 | F17: 0.122 | G17: 0.1975 | H17: 0.094 | I17: 1.913967335
A18: 1.075238076 | B18: 1.226191584 | C18: 1.532684489 | D18: 1.973628602 | E18: 2.528092033 | F18: 0.093 | G18: 0.2125 | H18: 0.085 | I18: 1.351192811
A19: 1.036609416 | B19: 1.115644922 | C19: 1.276784999 | D19: 1.525156782 | E19: 1.841254578 | F19: 0.077 | G19: 0.1825 | H19: 0.08 | I19: 0.7762279115
A20: 1.093580525 | B20: 1.278662865 | C20: 1.65413057 | D20: 2.186390194 | E20: 2.853867255 | F20: 0.074 | G20: 0.25 | H20: 0.105 | I20: 1.609654424
A21: 1.256026886 | B21: 1.743499472 | C21: 2.730119081 | D21: 4.07191344 | E21: 5.741392009 | F21: 0.102 | G21: 0.325 | H21: 0.129 | I21: 3.571074134
A22: 1.192738083 | B22: 1.562413704 | C22: 2.31095915 | D22: 3.337443331 | E22: 4.6166577 | F22: 0.124 | G22: 0.2425 | H22: 0.112 | I22: 2.870638294
A23: 1.162921741 | B23: 1.477110213 | C23: 2.113514211 | D23: 2.99150438 | E23: 4.0869325 | F23: 0.125 | G23: 0.2425 | H23: 0.097 | I23: 2.514365892
A24: 1.070910925 | B24: 1.213800171 | C24: 1.503993427 | D24: 1.923316895 | E24: 2.451011911 | F24: 0.089 | G24: 0.1975 | H24: 0.092 | I24: 1.28871688
A25: 1.242861651 | B25: 1.705854633 | C25: 2.643002747 | D25: 3.91935412 | E25: 5.507852302 | F25: 0.126 | G25: 0.295 | H25: 0.11 | I25: 3.431589226
A26: 1.134540469 | B26: 1.395934211 | C26: 1.925641044 | D26: 2.662416297 | E26: 3.583084653 | F26: 0.112 | G26: 0.31 | H26: 0.073 | I26: 2.158181441
A27: 1.092189925 | B27: 1.274676571 | C27: 1.644897277 | D27: 2.170183852 | E27: 2.829024348 | F27: 0.084 | G27: 0.2025 | H27: 0.113 | I27: 1.590231134
A28: 1.169467263 | B28: 1.495824038 | C28: 2.156818961 | D28: 3.067330935 | E28: 4.203000131 | F28: 0.092 | G28: 0.3025 | H28: 0.109 | I28: 2.593944238
A29: 1.08674185 | B29: 1.25910781 | C29: 1.60887658 | D29: 2.107139088 | E29: 2.732547107 | F29: 0.082 | G29: 0.25 | H29: 0.09 | I29: 1.514439935
A30: 1.144258776 | B30: 1.423688658 | C30: 1.989840797 | D30: 2.774717594 | E30: 3.754880385 | F30: 0.126 | G30: 0.2 | H30: 0.106 | I30: 2.281495816
A31: 1.192162232 | B31: 1.56077162 | C31: 2.307162868 | D31: 3.330811873 | E31: 4.606521545 | F31: 0.122 | G31: 0.255 | H31: 0.108 | I31: 2.864005602
A32: 1.192514892 | B32: 1.561809202 | C32: 2.309588394 | D32: 3.335167144 | E32: 4.613288031 | F32: 0.119 | G32: 0.3075 | H32: 0.092 | I32: 2.868537039
A33: 1.218498064 | B33: 1.636114828 | C33: 2.481551334 | D33: 3.636344253 | E33: 5.074364391 | F33: 0.103 | G33: 0.295 | H33: 0.123 | I33: 3.164441898
A34: 1.067029341 | B34: 1.202690809 | C34: 1.478275923 | D34: 1.878242009 | E34: 2.381975598 | F34: 0.079 | G34: 0.2125 | H34: 0.093 | I34: 1.232343111
A35: 1.181740204 | B35: 1.530936156 | C35: 2.238089805 | D35: 3.209722592 | E35: 4.421038789 | F35: 0.093 | G35: 0.2975 | H35: 0.116 | I35: 2.74112582
A36: 1.213117476 | B36: 1.620739278 | C36: 2.445977957 | D36: 3.574083719 | E36: 4.979088472 | F36: 0.12 | G36: 0.2825 | H36: 0.108 | I36: 3.104374531
A37: 1.173300348 | B37: 1.506775225 | C37: 2.182154126 | D37: 3.111664337 | E37: 4.270834974 | F37: 0.083 | G37: 0.3 | H37: 0.124 | I37: 2.640018501
A38: 1.207278512 | B38: 1.604005148 | C38: 2.407220572 | D38: 3.506070613 | E38: 4.874843331 | F38: 0.129 | G38: 0.22 | H38: 0.126 | I38: 3.037877988
A39: 1.157330136 | B39: 1.461148391 | C39: 2.076598407 | D39: 2.9269561 | E39: 3.988212748 | F39: 0.118 | G39: 0.315 | H39: 0.077 | I39: 2.446045881
A40: 1.08570283 | B40: 1.256124621 | C40: 1.601962793 | D40: 2.094986557 | E40: 2.713902311 | F40: 0.096 | G40: 0.1925 | H40: 0.099 | I40: 1.499673241
A41: 1.081166577 | B41: 1.243174483 | C41: 1.572011502 | D41: 2.042612476 | E41: 2.633798524 | F41: 0.074 | G41: 0.3225 | H41: 0.074 | I41: 1.43607098
A42: 1.213370941 | B42: 1.62147145 | C42: 2.447678518 | D42: 3.57708911 | E42: 4.983714405 | F42: 0.127 | G42: 0.2775 | H42: 0.104 | I42: 3.107329621
A43: 1.110674862 | B43: 1.327601721 | C43: 1.767432502 | D43: 2.38502409 | E43: 3.15813974 | F43: 0.123 | G43: 0.2 | H43: 0.089 | I43: 1.843442171
A44: 1.105453822 | B44: 1.312634354 | C44: 1.73276358 | D44: 2.324170251 | E44: 3.064853625 | F44: 0.077 | G44: 0.245 | H44: 0.112 | I44: 1.772484533
A45: 1.114393099 | B45: 1.33821035 | C45: 1.791963097 | D45: 2.427896279 | E45: 3.223689515 | F45: 0.107 | G45: 0.1775 | H45: 0.118 | I45: 1.892775913
A46: 1.122481935 | B46: 1.36138583 | C46: 1.845633539 | D46: 2.522054984 | E46: 3.367986034 | F46: 0.114 | G46: 0.2225 | H46: 0.093 | I46: 2.000481281
A47: 1.13458384 | B47: 1.396001748 | C47: 1.92575013 | D47: 2.662398969 | E47: 3.582865782 | F47: 0.091 | G47: 0.2625 | H47: 0.106 | I47: 2.157867807
A48: 1.137525994 | B48: 1.404456607 | C48: 1.945351188 | D48: 2.696879658 | E48: 3.635792379 | F48: 0.097 | G48: 0.32 | H48: 0.083 | I48: 2.196227954
A49: 1.190776795 | B49: 1.556818131 | C49: 2.298020574 | D49: 3.314831458 | E49: 4.582085939 | F49: 0.126 | G49: 0.2625 | H49: 0.101 | I49: 2.847980545
A50: 1.165541829 | B50: 1.484575413 | C50: 2.130767579 | D50: 3.021620161 | E50: 4.132943133 | F50: 0.119 | G50: 0.205 | H50: 0.122 | I50: 2.545941494
A51: 1.191728898 | B51: 1.559573151 | C51: 2.304423359 | D51: 3.326164241 | E51: 4.599545209 | F51: 0.121 | G51: 0.3225 | H51: 0.086 | I51: 2.859556664
A52: 1.230427279 | B52: 1.670296266 | C52: 2.560712042 | D52: 3.775233101 | E52: 5.287218597 | F52: 0.127 | G52: 0.3175 | H52: 0.097 | I52: 3.297058988
A53: 1.213449558 | B53: 1.621667938 | C53: 2.448109561 | D53: 3.57773951 | E53: 4.984613626 | F53: 0.118 | G53: 0.2525 | H53: 0.123 | I53: 3.107804559
A54: 1.112424166 | B54: 1.3325676 | C54: 1.778894185 | D54: 2.40496276 | E54: 3.188539154 | F54: 0.07 | G54: 0.245 | H54: 0.129 | I54: 1.866297994
A55: 1.107527131 | B55: 1.318590612 | C55: 1.746570585 | D55: 2.348451878 | E55: 3.102118965 | F55: 0.124 | G55: 0.19 | H55: 0.091 | I55: 1.800941737
A56: 1.128861744 | B56: 1.379681494 | C56: 1.888017139 | D56: 2.596473836 | E56: 3.482088374 | F56: 0.12 | G56: 0.28 | H56: 0.073 | I56: 2.084601274
A57: 1.214198872 | B57: 1.623827547 | C57: 2.45312147 | D57: 3.586579193 | E57: 4.998203458 | F57: 0.101 | G57: 0.325 | H57: 0.112 | I57: 3.116461952
A58: 1.053367223 | B58: 1.1635996 | C58: 1.387791076 | D58: 1.719689353 | E58: 2.139174121 | F58: 0.073 | G58: 0.22 | H58: 0.085 | I58: 1.030796169
A59: 1.242559969 | B59: 1.704994911 | C59: 2.641015644 | D59: 3.915885022 | E59: 5.502551682 | F59: 0.124 | G59: 0.305 | H59: 0.108 | I59: 3.428399289
A60: 1.123678317 | B60: 1.364784075 | C60: 1.853478659 | D60: 2.535709698 | E60: 3.388811511 | F60: 0.118 | G60: 0.175 | H60: 0.115 | I60: 2.015819971
A61: 1.100548762 | B61: 1.29860119 | C61: 1.700282208 | D61: 2.267260497 | E61: 2.977709682 | F61: 0.085 | G61: 0.2225 | H61: 0.108 | I61: 1.705659019
A62: 1.135305174 | B62: 1.398063675 | C62: 1.930521212 | D62: 2.670751703 | E62: 3.595649989 | F62: 0.107 | G62: 0.22 | H62: 0.108 | I62: 2.167121997
A63: 1.151906578 | B63: 1.44555456 | C63: 2.040440141 | D63: 2.863319295 | E63: 3.890505065 | F63: 0.118 | G63: 0.19 | H63: 0.124 | I63: 2.37744843
A64: 1.030399361 | B64: 1.097871243 | C64: 1.235639943 | D64: 1.453041875 | E64: 1.730803758 | F64: 0.073 | G64: 0.175 | H64: 0.081 | I64: 0.6797407138
A65: 1.214632044 | B65: 1.625070274 | C65: 2.456000779 | D65: 3.591636641 | E65: 5.005959459 | F65: 0.108 | G65: 0.31 | H65: 0.11 | I65: 3.121379379
A66: 1.041254322 | B66: 1.128944717 | C66: 1.30757803 | D66: 1.579148706 | E66: 1.923967703 | F66: 0.092 | G66: 0.175 | H66: 0.074 | I66: 0.8477404247
A67: 1.084993907 | B67: 1.254100968 | C67: 1.597282613 | D67: 2.086803292 | E67: 2.701387018 | F67: 0.089 | G67: 0.2175 | H67: 0.094 | I67: 1.489771603
A68: 1.0739198 | B68: 1.22240348 | C68: 1.52390264 | D68: 1.95818105 | E68: 2.504381349 | F68: 0.083 | G68: 0.2 | H68: 0.1 | I68: 1.33200035
A69: 1.210707878 | B69: 1.613854066 | C69: 2.43004848 | D69: 3.546205599 | E69: 4.936428731 | F69: 0.112 | G69: 0.3175 | H69: 0.102 | I69: 3.077307848
A70: 1.154406924 | B70: 1.452760162 | C70: 2.057161963 | D70: 2.892809681 | E70: 3.935840314 | F70: 0.12 | G70: 0.27 | H70: 0.087 | I70: 2.409404632
A71: 1.132018231 | B71: 1.388671143 | C71: 1.908790529 | D71: 2.632719479 | E71: 3.537450877 | F71: 0.124 | G71: 0.2075 | H71: 0.097 | I71: 2.124906278
A72: 1.133787341 | B72: 1.393728558 | C72: 1.920493213 | D72: 2.653208955 | E72: 3.568812337 | F72: 0.104 | G72: 0.24 | H72: 0.101 | I72: 2.147691113
A73: 1.261770994 | B73: 1.759936747 | C73: 2.768168077 | D73: 4.138591467 | E73: 5.843506123 | F73: 0.109 | G73: 0.31 | H73: 0.129 | I73: 3.631193893
A74: 1.084643441 | B74: 1.253079558 | C74: 1.594902782 | D74: 2.082564549 | E74: 2.694832616 | F74: 0.076 | G74: 0.2075 | H74: 0.115 | I74: 1.484533178
A75: 1.169590702 | B75: 1.496182834 | C75: 2.15765415 | D75: 3.068815054 | E75: 4.20529191 | F75: 0.098 | G75: 0.295 | H75: 0.105 | I75: 2.595524404
A76: 1.073211673 | B76: 1.220385537 | C76: 1.519238543 | D76: 1.950038616 | E76: 2.491940256 | F76: 0.078 | G76: 0.2325 | H76: 0.091 | I76: 1.321946657
A77: 1.08400165 | B77: 1.25125529 | C77: 1.59069022 | D77: 2.075227588 | E77: 2.683638154 | F77: 0.095 | G77: 0.19 | H77: 0.1 | I77: 1.475677186
A78: 1.15367784 | B78: 1.450667984 | C78: 2.052314112 | D78: 2.88429266 | E78: 3.922777061 | F78: 0.096 | G78: 0.325 | H78: 0.09 | I78: 2.400236118
A79: 1.077410686 | B79: 1.232383961 | C79: 1.546997936 | D79: 1.998620667 | E79: 2.566282035 | F79: 0.086 | G79: 0.1775 | H79: 0.112 | I79: 1.381897699
A80: 1.189546465 | B80: 1.55328758 | C80: 2.289839825 | D80: 3.300458985 | E80: 4.560041699 | F80: 0.108 | G80: 0.2875 | H80: 0.107 | I80: 2.833428817
A81: 1.141793253 | B81: 1.416639478 | C81: 1.97352848 | D81: 2.746154076 | E81: 3.711157612 | F81: 0.09 | G81: 0.29 | H81: 0.101 | I81: 2.250288616
A82: 1.230796104 | B82: 1.671305762 | C82: 2.563010462 | D82: 3.779091638 | E82: 5.292971605 | F82: 0.107 | G82: 0.295 | H82: 0.124 | I82: 3.300445531
A83: 1.22713353 | B83: 1.660817378 | C83: 2.538725604 | D83: 3.736506208 | E83: 5.227728258 | F83: 0.11 | G83: 0.27 | H83: 0.13 | I83: 3.260113615
A84: 1.084615518 | B84: 1.253028796 | C84: 1.594809619 | D84: 2.082508698 | E84: 2.694846169 | F84: 0.122 | G84: 0.175 | H84: 0.085 | I84: 1.484609639
A85: 1.185293143 | B85: 1.541111463 | C85: 2.261650496 | D85: 3.251041375 | E85: 4.484344539 | F85: 0.098 | G85: 0.3025 | H85: 0.11 | I85: 2.783321082
A86: 1.066490669 | B86: 1.201155262 | C86: 1.474726378 | D86: 1.872043485 | E86: 2.372502963 | F86: 0.094 | G86: 0.19 | H86: 0.087 | I86: 1.224588581
A87: 1.184135904 | B87: 1.53780871 | C87: 2.254012627 | D87: 3.237688976 | E87: 4.463925883 | F87: 0.13 | G87: 0.24 | H87: 0.104 | I87: 2.769774963
A88: 1.071681819 | B88: 1.216027354 | C88: 1.509166618 | D88: 1.932460664 | E88: 2.465087226 | F88: 0.079 | G88: 0.275 | H88: 0.075 | I88: 1.300204392
A89: 1.163549376 | B89: 1.478940218 | C89: 2.117778677 | D89: 2.999102734 | E89: 4.098684496 | F89: 0.124 | G89: 0.2975 | H89: 0.08 | I89: 2.522570319
A90: 1.104213456 | B90: 1.309124026 | C90: 1.724670521 | D90: 2.310131829 | E90: 3.04348737 | F90: 0.098 | G90: 0.2675 | H90: 0.08 | I90: 1.756249123
A91: 1.076512533 | B91: 1.229809704 | C91: 1.541035615 | D91: 1.988156996 | E91: 2.550243464 | F91: 0.071 | G91: 0.2025 | H91: 0.118 | I91: 1.368986321
A92: 1.20743826 | B92: 1.604457712 | C92: 2.40826435 | D92: 3.507882916 | E92: 4.877603249 | F92: 0.101 | G92: 0.2725 | H92: 0.13 | I92: 3.039629528
A93: 1.116844804 | B93: 1.345282116 | C93: 1.808379585 | D93: 2.456871317 | E93: 3.268253732 | F93: 0.129 | G93: 0.2325 | H93: 0.076 | I93: 1.926327561
A94: 1.17011166 | B94: 1.497654716 | C94: 2.161045488 | D94: 3.074688515 | E94: 4.214222616 | F94: 0.13 | G94: 0.195 | H94: 0.12 | I94: 2.601555954
A95: 1.06598556 | B95: 1.199717856 | C95: 1.471405758 | D95: 1.866253853 | E95: 2.363663647 | F95: 0.085 | G95: 0.2275 | H95: 0.08 | I95: 1.217350531
A96: 1.100441368 | B96: 1.298287841 | C96: 1.699551831 | D96: 2.265958334 | E96: 2.975694976 | F96: 0.078 | G96: 0.2275 | H96: 0.115 | I96: 1.704092252
A97: 1.127042699 | B97: 1.374456209 | C97: 1.875905008 | D97: 2.57517479 | E97: 3.449402186 | F97: 0.102 | G97: 0.29 | H97: 0.082 | I97: 2.060578086
A98: 1.131806787 | B98: 1.388036758 | C98: 1.907297566 | D98: 2.629995122 | E98: 3.533178981 | F98: 0.082 | G98: 0.245 | H98: 0.124 | I98: 2.121715669
A99: 1.12394594 | B99: 1.36555588 | C99: 1.855270224 | D99: 2.538871313 | E99: 3.393673693 | F99: 0.09 | G99: 0.2425 | H99: 0.109 | I99: 2.019427867
A100: 1.112483382 | B100: 1.332740673 | C100: 1.779297838 | D100: 2.40568347 | E100: 3.189655192 | F100: 0.084 | G100: 0.2125 | H100: 0.124 | I100: 1.867148619
A101: 1.148622858 | B101: 1.4361841 | C101: 2.018771285 | D101: 2.825442786 | E101: 3.832588121 | F101: 0.091 | G101: 0.2975 | H101: 0.101 | I101: 2.336681048
A102: 1.162074758 | B102: 1.474649028 | C102: 2.107785765 | D102: 2.98132761 | E102: 4.071219883 | F102: 0.096 | G102: 0.24 | H102: 0.127 | I102: 2.503406174
A103: 1.152140807 | B103: 1.44625601 | C103: 2.042089902 | D103: 2.866325307 | E103: 3.895214646 | F103: 0.098 | G103: 0.29 | H103: 0.098 | I103: 2.380849478
A104: 1.05737166 | B104: 1.175046716 | C104: 1.414278888 | D104: 1.766063285 | E104: 2.210152939 | F104: 0.079 | G104: 0.18 | H104: 0.1 | I104: 1.090232813
A105: 1.209835159 | B105: 1.611316638 | C105: 2.424141379 | D105: 3.535706187 | E105: 4.920213181 | F105: 0.095 | G105: 0.2925 | H105: 0.13 | I105: 3.066845922
A106: 1.181377113 | B106: 1.529897117 | C106: 2.235684616 | D106: 3.205507592 | E106: 4.414583643 | F106: 0.127 | G106: 0.2175 | H106: 0.116 | I106: 2.736811551
A107: 1.169642621 | B107: 1.496358638 | C107: 2.158083846 | D107: 3.069668426 | E107: 4.20669139 | F107: 0.123 | G107: 0.2775 | H107: 0.089 | I107: 2.596561304
A108: 1.12965576 | B108: 1.381879705 | C108: 1.893043805 | D108: 2.605010209 | E108: 3.494910044 | F108: 0.071 | G108: 0.275 | H108: 0.126 | I108: 2.093783229
A109: 1.119356993 | B109: 1.352431333 | C109: 1.824895487 | D109: 2.485668138 | E109: 3.312219899 | F109: 0.084 | G109: 0.27 | H109: 0.102 | I109: 1.959038019
A110: 1.15506137 | B110: 1.454620425 | C110: 2.061457665 | D110: 2.900291542 | E110: 3.947255948 | F110: 0.094 | G110: 0.32 | H110: 0.094 | I110: 2.41735604
A111: 1.080632048 | B111: 1.241618176 | C111: 1.568386661 | D111: 2.036161799 | E111: 2.623828845 | F111: 0.089 | G111: 0.21 | H111: 0.094 | I111: 1.428050187
A112: 1.135307704 | B112: 1.398112023 | C112: 1.930667461 | D112: 2.67115949 | E112: 3.596414251 | F112: 0.122 | G112: 0.2575 | H112: 0.081 | I112: 2.167788114
A113: 1.090400661 | B113: 1.269568712 | C113: 1.633083862 | D113: 2.14952697 | E113: 2.797431089 | F113: 0.073 | G113: 0.2625 | H113: 0.099 | I113: 1.565507513
A114: 1.055549664 | B114: 1.169850886 | C114: 1.402266595 | D114: 1.745078876 | E114: 2.178077455 | F114: 0.072 | G114: 0.2425 | H114: 0.08 | I114: 1.063453316
A115: 1.13204688 | B115: 1.388749088 | C115: 1.908967584 | D115: 2.63301488 | E115: 3.537889547 | F115: 0.128 | G115: 0.195 | H115: 0.1 | I115: 2.125214697
A116: 1.040534719 | B116: 1.126885198 | C116: 1.302810395 | D116: 1.57079263 | E116: 1.911169723 | F116: 0.076 | G116: 0.21 | H116: 0.074 | I116: 0.8367188406
A117: 1.113393286 | B117: 1.335389252 | C117: 1.78546619 | D117: 2.416658184 | E117: 3.206614762 | F117: 0.087 | G117: 0.305 | H117: 0.084 | I117: 1.880037811
A118: 1.136340422 | B118: 1.401085742 | C118: 1.937566478 | D118: 2.683317702 | E118: 3.615096867 | F118: 0.115 | G118: 0.305 | H118: 0.073 | I118: 2.181350234
A119: 1.090555778 | B119: 1.27002648 | C119: 1.634155101 | D119: 2.151455415 | E119: 2.800431619 | F119: 0.091 | G119: 0.24 | H119: 0.087 | I119: 1.567893981
A120: 1.095947203 | B120: 1.285454685 | C120: 1.669868441 | D120: 2.214040991 | E120: 2.89627891 | F120: 0.089 | G120: 0.2525 | H120: 0.088 | I120: 1.642717552
A121: 1.181195785 | B121: 1.529430941 | C121: 2.234649538 | D121: 3.203887959 | E121: 4.412282462 | F121: 0.13 | G121: 0.29 | H121: 0.085 | I121: 2.735437019
A122: 1.072581525 | B122: 1.218605465 | C122: 1.51513737 | D122: 1.942936944 | E122: 2.481143108 | F122: 0.125 | G122: 0.18 | H122: 0.073 | I122: 1.313244308
A123: 1.110257147 | B123: 1.326402094 | C123: 1.764652014 | D123: 2.380135652 | E123: 3.150638723 | F123: 0.084 | G123: 0.2825 | H123: 0.092 | I123: 1.837755859
A124: 1.080994478 | B124: 1.242649492 | C124: 1.570769097 | D124: 2.040315431 | E124: 2.630170176 | F124: 0.087 | G124: 0.2025 | H124: 0.1 | I124: 1.433102325
A125: 1.170892126 | B125: 1.499930583 | C125: 2.166349155 | D125: 3.084139407 | E125: 4.228840664 | F125: 0.111 | G125: 0.3025 | H125: 0.091 | I125: 2.611639852
A126: 1.153481406 | B126: 1.450078633 | C126: 2.050927132 | D126: 2.881761692 | E126: 3.918808399 | F126: 0.118 | G126: 0.22 | H126: 0.108 | I126: 2.397374572
A127: 1.061942902 | B127: 1.188155897 | C127: 1.444647537 | D127: 1.819385882 | E127: 2.291909629 | F127: 0.115 | G127: 0.175 | H127: 0.074 | I127: 1.15822303
A128: 1.140338587 | B128: 1.412450577 | C128: 1.963810095 | D128: 2.729026601 | E128: 3.684838495 | F128: 0.082 | G128: 0.255 | H128: 0.125 | I128: 2.231354736
A129: 1.169293079 | B129: 1.495366701 | C129: 2.155794649 | D129: 3.065687395 | E129: 4.200622882 | F129: 0.122 | G129: 0.2925 | H129: 0.085 | I129: 2.592446545
A130: 1.139318973 | B130: 1.40955115 | C130: 1.957113776 | D130: 2.717359206 | E130: 3.667032634 | F130: 0.081 | G130: 0.3 | H130: 0.107 | I130: 2.21861807
A131: 1.105783748 | B131: 1.313569647 | C131: 1.734921231 | D131: 2.327918873 | E131: 3.070564475 | F131: 0.081 | G131: 0.2125 | H131: 0.123 | I131: 1.776821853
A132: 1.144365588 | B132: 1.424012777 | C132: 1.990606495 | D132: 2.776127491 | E132: 3.757102365 | F132: 0.125 | G132: 0.23 | H132: 0.093 | I132: 2.2831312
A133: 1.108657211 | B133: 1.321833489 | C133: 1.754084755 | D133: 2.36165326 | E133: 3.122367008 | F133: 0.082 | G133: 0.31 | H133: 0.085 | I133: 1.816350245
A134: 1.094476918 | B134: 1.281263575 | C134: 1.660180428 | D134: 2.197123327 | E134: 2.870425559 | F134: 0.124 | G134: 0.205 | H134: 0.077 | I134: 1.622646044
A135: 1.069922063 | B135: 1.210975467 | C135: 1.497458992 | D135: 1.911884256 | E135: 2.433520429 | F135: 0.091 | G135: 0.2025 | H135: 0.087 | I135: 1.274483827
A136: 1.123611593 | B136: 1.364585293 | C136: 1.853011967 | D136: 2.534862948 | E136: 3.387488089 | F136: 0.088 | G136: 0.2175 | H136: 0.124 | I136: 2.014821234
A137: 1.154214172 | B137: 1.452157998 | C137: 2.055725823 | D137: 2.890106512 | E137: 3.931528553 | F137: 0.075 | G137: 0.3025 | H137: 0.124 | I137: 2.406238328
A138: 1.094501629 | B138: 1.281320361 | C138: 1.660300245 | D138: 2.197281973 | E138: 2.870621173 | F138: 0.082 | G138: 0.2775 | H138: 0.086 | I138: 1.622765556
A139: 1.155904021 | B139: 1.457030266 | C139: 2.067034726 | D139: 2.910059464 | E139: 3.962210001 | F139: 0.122 | G139: 0.245 | H139: 0.095 | I139: 2.4278019
A140: 1.120881712 | B140: 1.356812203 | C140: 1.835051145 | D140: 2.503530584 | E140: 3.339635699 | F140: 0.1 | G140: 0.2625 | H140: 0.089 | I140: 1.979472019
A141: 1.217119524 | B141: 1.632162618 | C141: 2.472396586 | D141: 3.62027399 | E141: 5.049728438 | F141: 0.102 | G141: 0.2825 | H141: 0.129 | I141: 3.148917457
A142: 1.23132586 | B142: 1.672841105 | C142: 2.566580673 | D142: 3.785419658 | E142: 5.302728603 | F142: 0.114 | G142: 0.31 | H142: 0.111 | I142: 3.306519317
A143: 1.148613258 | B143: 1.436137254 | C143: 2.018646664 | D143: 2.825152994 | E143: 3.832078451 | F143: 0.128 | G143: 0.1825 | H143: 0.117 | I143: 2.33626521
A144: 1.137179654 | B144: 1.403429043 | C144: 1.942942111 | D144: 2.692523474 | E144: 3.628997063 | F144: 0.113 | G144: 0.2125 | H144: 0.107 | I144: 2.191225811
A145: 1.130687237 | B145: 1.384866396 | C145: 1.899986652 | D145: 2.617306122 | E145: 3.513859715 | F145: 0.124 | G145: 0.2125 | H145: 0.094 | I145: 2.107720332
A146: 1.133197068 | B146: 1.392023497 | C146: 1.916533022 | D146: 2.646210257 | E146: 3.558039971 | F146: 0.112 | G146: 0.195 | H146: 0.115 | I146: 2.139824547
A147: 1.164846991 | B147: 1.482586015 | C147: 2.12616164 | D147: 3.013544698 | E147: 4.120572365 | F147: 0.106 | G147: 0.2275 | H147: 0.123 | I147: 2.537436588
A148: 1.082285216 | B148: 1.246329736 | C148: 1.579277001 | D148: 2.055175815 | E148: 2.652882844 | F148: 0.078 | G148: 0.195 | H148: 0.117 | I148: 1.451186438
A149: 1.076904352 | B149: 1.230934995 | C149: 1.543643834 | D149: 1.992742688 | E149: 2.557280048 | F149: 0.08 | G149: 0.19 | H149: 0.112 | I149: 1.374658476
A150: 1.061550957 | B150: 1.187011805 | C150: 1.441980398 | D150: 1.814628977 | E150: 2.284548148 | F150: 0.083 | G150: 0.19 | H150: 0.094 | I150: 1.152085241
A151: 1.173185786 | B151: 1.506461347 | C151: 2.181439214 | D151: 3.110462926 | E151: 4.269042508 | F151: 0.104 | G151: 0.265 | H151: 0.112 | I151: 2.638846089
A152: 1.229847 | B152: 1.6685822 | C152: 2.5566996 | D152: 3.76800425 | E152: 5.275965917 | F152: 0.125 | G152: 0.24 | H152: 0.13 | I152: 3.289936811
A153: 1.094620981 | B153: 1.281654154 | C153: 1.66106644 | D153: 2.198596138 | E153: 2.872607426 | F153: 0.099 | G153: 0.215 | H153: 0.092 | I153: 1.624294141
A154: 1.242720666 | B154: 1.705436476 | C154: 2.642022506 | D154: 3.917582082 | E154: 5.505088478 | F154: 0.109 | G154: 0.315 | H154: 0.119 | I154: 3.429867972
A155: 1.058439362 | B155: 1.178112484 | C155: 1.421384251 | D155: 1.7785534 | E155: 2.229316449 | F155: 0.086 | G155: 0.19 | H155: 0.088 | I155: 1.106229728
A156: 1.078977582 | B156: 1.236904745 | C156: 1.557493526 | D156: 2.017149671 | E156: 2.594783995 | F156: 0.077 | G156: 0.2925 | H156: 0.077 | I156: 1.404854409
A157: 1.11940986 | B157: 1.352604732 | C157: 1.825315341 | D157: 2.486485407 | E157: 3.313546694 | F157: 0.089 | G157: 0.3025 | H157: 0.086 | I157: 1.960083535
A158: 1.089746368 | B158: 1.267735689 | C158: 1.628873602 | D158: 2.142293628 | E158: 2.786487183 | F158: 0.091 | G158: 0.2925 | H158: 0.071 | I158: 1.55700525
A159: 1.089061708 | B159: 1.265742224 | C159: 1.624230524 | D159: 2.134030752 | E159: 2.773716551 | F159: 0.072 | G159: 0.2775 | H159: 0.094 | I159: 1.546886491
A160: 1.095778102 | B160: 1.28499491 | C160: 1.668824302 | D160: 2.212300122 | E160: 2.893694873 | F160: 0.114 | G160: 0.2375 | H160: 0.073 | I160: 1.640767203
A161: 1.122254469 | B161: 1.360758384 | C161: 1.844200726 | D161: 2.51963057 | E161: 3.364352944 | F161: 0.117 | G161: 0.255 | H161: 0.079 | I161: 1.997852123
A162: 1.10394762 | B162: 1.308349359 | C162: 1.722865668 | D162: 2.306917538 | E162: 3.038517404 | F162: 0.095 | G162: 0.2475 | H162: 0.089 | I162: 1.752410848
A163: 1.17574399 | B163: 1.513762873 | C163: 2.198324913 | D163: 3.139983826 | E163: 4.314187709 | F163: 0.094 | G163: 0.2575 | H163: 0.129 | I163: 2.66932576
A164: 1.107079172 | B164: 1.317288327 | C164: 1.74353901 | D164: 2.343064043 | E164: 3.093798368 | F164: 0.07 | G164: 0.28 | H164: 0.109 | I164: 1.794559275
A165: 1.091225624 | B165: 1.271913314 | C165: 1.638497698 | D165: 2.158954973 | E165: 2.811814872 | F165: 0.084 | G165: 0.1925 | H165: 0.118 | I165: 1.576749309
A166: 1.191926853 | B166: 1.560090838 | C166: 2.30558096 | D166: 3.328013076 | E166: 4.602210766 | F166: 0.11 | G166: 0.27 | H166: 0.113 | I166: 2.861152012
A167: 1.183214095 | B167: 1.535156478 | C167: 2.247861221 | D167: 3.226856049 | E167: 4.447286854 | F167: 0.109 | G167: 0.26 | H167: 0.114 | I167: 2.758649321
A168: 1.054167069 | B168: 1.165891776 | C168: 1.3930998 | D168: 1.729004825 | E168: 2.15345168 | F168: 0.092 | G168: 0.1825 | H168: 0.082 | I168: 1.042799233
A169: 1.242689519 | B169: 1.705362045 | C169: 2.641862491 | D169: 3.917355843 | E169: 5.50479198 | F169: 0.117 | G169: 0.3175 | H169: 0.11 | I169: 3.42974041
A170: 1.12724325 | B170: 1.374987653 | C170: 1.877099738 | D170: 2.577112011 | E170: 3.452224618 | F170: 0.076 | G170: 0.2825 | H170: 0.113 | I170: 2.062537404
A171: 1.041297836 | B171: 1.129070411 | C171: 1.307869967 | D171: 1.579664635 | E171: 1.92476182 | F171: 0.071 | G171: 0.23 | H171: 0.073 | I171: 0.8484258335
A172: 1.069696108 | B172: 1.210322601 | C172: 1.495942494 | D172: 1.909203577 | E172: 2.429393762 | F172: 0.08 | G172: 0.215 | H172: 0.093 | I172: 1.27110648
A173: 1.203610953 | B173: 1.593529827 | C173: 2.382988777 | D173: 3.463678894 | E173: 4.809989563 | F173: 0.1 | G173: 0.3175 | H173: 0.111 | I173: 2.996299263
A174: 1.086522628 | B174: 1.258485416 | C174: 1.60743998 | D174: 2.104639722 | E174: 2.728736213 | F174: 0.072 | G174: 0.2975 | H174: 0.086 | I174: 1.511439839
A175: 1.15678682 | B175: 1.459514368 | C175: 2.072749758 | D175: 2.919919456 | E175: 3.977166944 | F175: 0.111 | G175: 0.1975 | H175: 0.13 | I175: 2.438115714
A176: 1.097365492 | B176: 1.289530622 | C176: 1.679317935 | D176: 2.230664578 | E176: 2.921796205 | F176: 0.088 | G176: 0.295 | H176: 0.077 | I176: 1.662555208
A177: 1.107705675 | B177: 1.319105786 | C177: 1.747766665 | D177: 2.350563599 | E177: 3.105367428 | F177: 0.119 | G177: 0.205 | H177: 0.088 | I177: 1.803422875
A178: 1.055578046 | B178: 1.169912395 | C178: 1.402392514 | D178: 1.745226902 | E178: 2.178237141 | F178: 0.075 | G178: 0.1825 | H178: 0.102 | I178: 1.063549113
A179: 1.160475379 | B179: 1.470071314 | C179: 2.097188483 | D179: 2.962753165 | E179: 4.04277081 | F179: 0.112 | G179: 0.2025 | H179: 0.128 | I179: 2.483719588
A180: 1.215706237 | B180: 1.628136632 | C180: 2.463092483 | D180: 3.60403653 | E180: 5.024923638 | F180: 0.118 | G180: 0.2725 | H180: 0.115 | I180: 3.133337055
A181: 1.156823695 | B181: 1.459625438 | C181: 2.073011501 | D181: 2.920398599 | E181: 3.977919601 | F181: 0.076 | G181: 0.3025 | H181: 0.124 | I181: 2.438656745
A182: 1.231381569 | B182: 1.673003919 | C182: 2.566960395 | D182: 3.786097622 | E182: 5.303778431 | F182: 0.119 | G182: 0.3025 | H182: 0.109 | I182: 3.307177049
A183: 1.200388248 | B183: 1.584301765 | C183: 2.361622646 | D183: 3.426214202 | E183: 4.752593806 | F183: 0.108 | G183: 0.28 | H183: 0.115 | I183: 2.959213874
A184: 1.103363495 | B184: 1.306662058 | C184: 1.718946729 | D184: 2.299991743 | E184: 3.02785725 | F184: 0.086 | G184: 0.2375 | H184: 0.102 | I184: 1.744206477
A185: 1.208830227 | B185: 1.608490239 | C185: 2.417640009 | D185: 3.524494717 | E185: 4.903210982 | F185: 0.116 | G185: 0.32 | H185: 0.097 | I185: 3.056161793
A186: 1.130463668 | B186: 1.384205492 | C186: 1.898439134 | D186: 2.614516295 | E186: 3.509515355 | F186: 0.11 | G186: 0.2025 | H186: 0.111 | I186: 2.104491947
A187: 1.065155639 | B187: 1.197335656 | C187: 1.465885338 | D187: 1.856552794 | E187: 2.348782106 | F187: 0.083 | G187: 0.215 | H187: 0.086 | I187: 1.205106954
A188: 1.1233106 | B188: 1.363775231 | C188: 1.851179643 | D188: 2.531840831 | E188: 3.383034119 | F188: 0.13 | G188: 0.2225 | H188: 0.082 | I188: 2.01166402
A189: 1.183515469 | B189: 1.536005844 | C189: 2.249816438 | D189: 3.230234352 | E189: 4.452416215 | F189: 0.115 | G189: 0.225 | H189: 0.125 | I189: 2.762026212
A190: 1.091958835 | B190: 1.274021137 | C190: 1.643384965 | D190: 2.1675552 | E190: 2.825018586 | F190: 0.071 | G190: 0.255 | H190: 0.106 | I190: 1.587110884
A191: 1.19465531 | B191: 1.567914054 | C191: 2.323703079 | D191: 3.359827847 | E191: 4.650986204 | F191: 0.121 | G191: 0.2725 | H191: 0.103 | I191: 2.893161623
A192: 1.042837528 | B192: 1.13346846 | C192: 1.318043957 | D192: 1.597464618 | E192: 1.951994701 | F192: 0.074 | G192: 0.2025 | H192: 0.081 | I192: 0.8718109474
A193: 1.134649427 | B193: 1.396166361 | C193: 1.926111907 | D193: 2.662947926 | E193: 3.583628041 | F193: 0.095 | G193: 0.205 | H193: 0.13 | I193: 2.15835707
A194: 1.160135081 | B194: 1.469189814 | C194: 2.09522507 | D194: 2.959652575 | E194: 4.038336191 | F194: 0.127 | G194: 0.3175 | H194: 0.072 | I194: 2.480918953
A195: 1.097102766 | B195: 1.288734695 | C195: 1.677438678 | D195: 2.227208741 | E195: 2.916353783 | F195: 0.076 | G195: 0.23 | H195: 0.114 | I195: 1.658232095
A196: 1.076552935 | B196: 1.229968531 | C196: 1.541439358 | D196: 1.989023781 | E196: 2.551717816 | F196: 0.103 | G196: 0.22 | H196: 0.075 | I196: 1.370266926
A197: 1.128866014 | B197: 1.379674396 | C197: 1.887984575 | D197: 2.596345579 | E197: 3.48182628 | F197: 0.13 | G197: 0.23 | H197: 0.082 | I197: 2.084357432
A198: 1.09301328 | B198: 1.277069728 | C198: 1.650467904 | D198: 2.18008252 | E198: 2.844309645 | F198: 0.08 | G198: 0.3025 | H198: 0.08 | I198: 1.60226449
A199: 1.255958372 | B199: 1.743339083 | C199: 2.729777601 | D199: 4.071446471 | E199: 5.74079813 | F199: 0.123 | G199: 0.325 | H199: 0.107 | I199: 3.57085064
A200: 1.164311205 | B200: 1.481053833 | C200: 2.122615794 | D200: 3.007334614 | E200: 4.111065381 | F200: 0.1 | G200: 0.2425 | H200: 0.122 | I200: 2.530899096
... 801 more rows

Sheet Inputs (hidden)
A1: 0.7 | B1: 1.3 | C1: =IF($H$1=$J$5,J6,IF($H$1=$K$5,K6,IF($H$1=$L$5,L6,0))) -> 0
A2: 0.7 | B2: 1.3 | C2: =IF($H$1=$J$5,J7,IF($H$1=$K$5,K7,IF($H$1=$L$5,L7,0))) -> 0
A3: 0.7 | B3: 1.3 | C3: =IF($H$1=$J$5,J8,IF($H$1=$K$5,K8,IF($H$1=$L$5,L8,0))) -> 0
A4: 1000
